bitfinex/quotes_ETHUSD_20251119
["timestamp","ask_amount","ask_price","bid_price","bid_amount"]
[1763594292982,0.002,3023.3,3022.7,3.30830052]
[1763594293146,0.002,3023.3,3022.8,0.117]
[1763594293476,0.002,3023.3,3022.9,0.117]
[1763594295379,0.002,3023.3,3022.9,7.22434014]
[1763594295586,0.002,3023.3,3022.9,0.117]
[1763594295783,0.002,3023.3,3022.9,3.91626484]
[1763594295983,0.002,3023.3,3023.2,0.4655]
[1763594296555,0.002,3023.3,3023.0,0.90699264]
[1763594296789,0.002,3023.3,3022.5,0.4912]
[1763594297080,0.002,3023.3,3022.2,7.25473297]
[1763594297081,0.4648,3023.3,3022.7,0.90699264]
[1763594297301,0.002,3023.3,3022.7,0.90699264]
[1763594297651,0.002,3023.3,3022.8,0.117]
[1763594298762,0.002,3023.3,3022.7,0.90699264]
[1763594298978,0.002,3023.3,3022.8,0.117]
[1763594299166,0.002,3023.3,3022.8,3.42515235]
[1763594299365,0.4628,3023.2,3022.2,10.56356407]
[1763594299569,0.4628,3023.2,3022.3,1.02399264]
[1763594300279,0.4628,3023.2,3022.3,7.64146938]
[1763594300880,0.4628,3023.2,3022.3,7.52446938]
[1763594301112,0.4628,3023.2,3022.4,0.117]
[1763594301601,0.002,3023.3,3022.5,7.10823886]
[1763594301805,0.4648,3023.3,3022.5,6.61703886]
[1763594302211,0.4648,3023.3,3022.6,0.117]
[1763594302212,0.002,3023.3,3022.6,0.117]
[1763594302406,0.002,3023.3,3022.6,0.6082]
[1763594302636,0.002,3023.3,3022.7,7.25473297]
[1763594302807,0.002,3023.3,3022.8,0.90699264]
[1763594303499,0.002,3023.3,3022.9,6.61616328]
[1763594303805,0.002,3023.3,3023.0,0.117]
[1763594304311,0.002,3023.3,3023.1,0.117]
[1763594304473,0.4648,3023.3,3022.4,6.6172578]
[1763594304675,0.4648,3023.3,3022.2,7.25473297]
[1763594304880,0.4648,3023.3,3022.1,0.1761]
[1763594304881,0.4648,3023.3,3022.3,0.117]
[1763594305941,0.4648,3023.3,3022.4,0.94007892]
[1763594305942,0.002,3023.3,3022.4,0.94007892]
[1763594306083,0.4753,3023.3,3022.5,0.03308519]
[1763594306448,0.4753,3023.3,3022.3,0.001]
[1763594307416,0.4753,3023.3,3022.3,3.3097184]
[1763594307642,0.4753,3023.3,3022.3,6.61845677]
[1763594307815,0.4753,3023.3,3022.4,0.90699264]
[1763594307816,0.002,3023.3,3022.4,0.90699264]
[1763594308020,0.002,3023.3,3022.4,1.36809264]
[1763594308354,0.002,3023.3,3022.7,6.92772601]
[1763594308556,0.002,3023.3,3022.8,0.117]
[1763594308711,0.002,3023.3,3022.9,0.4611]
[1763594309044,0.002,3023.3,3022.8,1.02399264]
[1763594309336,0.4753,3023.3,3022.9,0.117]
[1763594309740,0.002,3023.3,3022.6,0.90699264]
[1763594310039,0.002,3023.3,3023.0,0.117]
[1763594310247,0.002,3023.3,3023.1,0.117]
[1763594310744,0.9506,3023.2,3022.3,0.90799264]
[1763594310911,0.9506,3023.2,3022.4,0.117]
[1763594311245,0.4733,3023.1,3022.4,0.117]
[1763594311623,0.4733,3023.1,3022.5,0.117]
[1763594313129,0.4733,3023.1,3022.3,0.001]
[1763594313337,0.4733,3023.1,3022.4,0.117]
[1763594313912,0.4733,3023.1,3022.4,3.42560988]
[1763594314117,0.4733,3023.1,3022.4,0.117]
[1763594317120,0.6615,3022.5,3022.3,0.118]
[1763594317361,0.3148,3022.4,3022.3,0.118]
[1763594317694,0.7881,3022.4,3022.3,0.001]
[1763594322894,0.1864,3022.9,3022.3,0.001]
[1763594323382,0.462,3022.4,3022.3,0.001]
[1763594323793,0.9535,3022.4,3022.3,0.001]
[1763594325193,0.4915,3022.8,3022.3,0.001]
[1763594325353,0.1864,3022.9,3022.3,0.001]
[1763594325551,0.6779,3022.9,3022.3,0.001]
[1763594326685,0.1864,3022.9,3022.3,0.001]
[1763594327288,0.6779,3022.9,3022.3,0.001]
[1763594327698,0.462,3022.4,3022.3,0.001]
[1763594328193,0.9535,3022.4,3022.3,0.001]
[1763594329356,0.897004,3022.8,3022.3,0.001]
[1763594329596,0.462,3022.4,3022.3,0.001]
[1763594329765,0.4915,3023.2,3022.3,0.001]
[1763594329959,0.4915,3023.2,3022.3,0.9573]
[1763594330155,0.002,3023.3,3022.3,0.9573]
[1763594330496,0.002,3023.3,3023.2,0.4724]
[1763594330659,0.002,3023.3,3023.2,3.78015337]
[1763594331187,0.002,3023.3,3023.2,0.4724]
[1763594331567,0.002,3023.3,3023.1,0.116]
[1763594331767,0.002,3023.3,3023.2,0.4724]
[1763594332455,0.002,3023.3,3023.2,0.9563]
[1763594332655,0.002,3023.3,3023.2,5.28704601]
[1763594332864,0.002,3023.3,3023.2,0.9563]
[1763594333061,0.002,3023.3,3023.2,4.68714601]
[1763594333278,0.002,3023.3,3023.2,5.28704601]
[1763594333473,0.002,3023.3,3023.2,5.90707811]
[1763594333706,0.002,3023.3,3023.2,5.28704601]
[1763594333914,0.002,3023.3,3022.8,3.30817195]
[1763594334223,0.002,3023.3,3023.2,0.5884]
[1763594334871,0.002,3023.3,3023.2,3.89615337]
[1763594335089,0.002,3023.3,3023.2,0.4724]
[1763594335285,0.002,3023.3,3023.2,0.5884]
[1763594335493,0.002,3023.3,3023.2,0.116]
[1763594335687,0.002,3023.3,3022.2,0.66]
[1763594335688,0.464,3023.3,3022.2,0.66]
[1763594335901,0.464,3023.3,3022.4,0.116]
[1763594336598,0.464,3023.3,3022.4,1.02299264]
[1763594336768,0.464,3023.3,3022.5,3.30851943]
[1763594336965,0.464,3023.3,3022.4,4.3315947]
[1763594337289,0.002,3023.3,3022.4,4.8154947]
[1763594337505,0.002,3023.3,3022.4,8.1241236]
[1763594338666,0.002,3023.3,3022.4,4.8154947]
[1763594338874,0.002,3023.3,3022.4,8.1241236]
[1763594339094,0.002,3023.3,3022.4,4.6994947]
[1763594339291,0.002,3023.3,3022.4,4.2155947]
[1763594339482,0.4935,3023.3,3022.5,0.116]
[1763594340304,0.4935,3023.3,3022.3,0.90799264]
[1763594340504,0.002,3023.3,3022.4,1.50689264]
[1763594340801,0.002,3023.3,3022.6,6.61681994]
[1763594341575,0.002,3023.3,3022.5,3.79238426]
[1763594341776,0.002,3023.3,3022.4,0.116]
[1763594341777,0.4915,3023.2,3022.4,0.116]
[1763594342273,0.4915,3023.2,3022.4,6.73325139]
[1763594342894,0.4915,3023.2,3022.4,3.42460863]
[1763594343108,0.4915,3023.2,3022.4,6.73323753]
[1763594343275,0.002,3023.3,3022.5,0.4839]
[1763594343804,0.002,3023.3,3022.4,3.30860863]
[1763594344033,0.4915,3023.2,3022.3,0.001]
[1763594344183,0.4915,3023.2,3022.5,0.116]
[1763594344909,0.002,3023.3,3022.6,3.30840997]
[1763594345631,0.002,3023.3,3022.7,0.033083]
[1763594345779,0.002,3023.3,3022.6,6.61681994]
[1763594346623,0.002,3023.3,3022.7,0.4839]
[1763594346825,0.002,3023.3,3023.2,0.4724]
[1763594346977,0.002,3023.3,3022.8,6.92772601]
[1763594346978,0.002,3023.3,3022.5,0.4839]
[1763594347177,0.002,3023.3,3022.7,0.90699264]
[1763594347843,0.002,3023.3,3022.7,1.40289264]
[1763594348066,0.002,3023.3,3022.7,0.90699264]
[1763594348220,0.4686,3023.3,3022.3,0.001]
[1763594348411,0.4686,3023.3,3022.5,0.116]
[1763594349938,0.4686,3023.3,3022.3,0.001]
[1763594350147,0.4699,3022.4,3022.3,0.001]
[1763594350519,0.4686,3023.3,3022.3,0.4956]
[1763594350712,0.4686,3023.3,3022.3,4.41623837]
[1763594350913,0.98745821,3023.3,3022.3,3.80433837]
[1763594351106,0.98745821,3023.3,3022.4,0.116]
[1763594351306,0.4666,3023.2,3022.4,3.42461842]
[1763594351532,0.4666,3023.2,3022.4,0.116]
[1763594351713,0.4666,3023.2,3022.4,3.4246266]
[1763594352124,0.002,3023.3,3022.4,3.4246266]
[1763594352450,0.4686,3023.3,3022.3,0.001]
[1763594352770,0.4686,3023.3,3022.5,0.116]
[1763594354941,0.51886746,3023.2,3022.5,0.116]
[1763594356448,0.98546746,3023.2,3022.5,0.116]
[1763594356659,0.6584,3022.6,3022.3,0.001]
[1763594356848,0.3279,3022.4,3022.3,0.001]
[1763594358017,0.7945,3022.4,3022.3,0.001]
[1763594359253,0.3279,3022.4,3022.3,0.001]
[1763594359664,0.1885,3022.6,3022.3,0.001]
[1763594360563,0.6551,3022.6,3022.3,0.001]
[1763594360728,0.4699,3022.4,3022.3,0.001]
[1763594361133,0.9365,3022.4,3022.3,0.001]
[1763594363857,0.1885,3022.6,3022.3,0.001]
[1763594364058,0.1885,3022.8,3022.3,0.001]
[1763594364242,0.4666,3022.7,3022.3,0.001]
[1763594364926,0.1885,3022.8,3022.3,0.001]
[1763594365322,0.6551,3022.8,3022.3,0.001]
[1763594365719,0.4666,3022.7,3022.3,0.001]
[1763594367059,0.4775,3023.2,3022.3,0.4843]
[1763594367464,0.4775,3023.2,3022.3,0.001]
[1763594368150,0.6703,3022.4,3022.3,0.001]
[1763594368549,1.1478,3022.4,3022.3,0.001]
[1763594369054,0.6703,3022.4,3022.3,0.001]
[1763594369366,0.4813,3022.4,3022.3,0.001]
[1763594369660,0.9588,3022.4,3022.3,0.001]
[1763594371042,0.189,3022.7,3022.3,0.001]
[1763594371233,0.6665,3022.7,3022.3,0.001]
[1763594371434,0.4813,3022.4,3022.3,0.001]
[1763594371946,0.9588,3022.4,3022.3,0.001]
[1763594375580,1.364304,3022.4,3022.3,0.001]
[1763594375877,0.405504,3022.3,3021.9,0.001]
[1763594376048,0.710804,3022.0,3021.9,0.001]
[1763594376249,1.49782857,3022.0,3021.9,0.001]
[1763594376676,0.4796,3021.7,3020.1,0.1948]
[1763594376854,0.705404,3021.6,3020.1,0.1948]
[1763594377174,1.68412298,3021.6,3020.1,0.1948]
[1763594377472,1.49242857,3021.6,3020.1,0.1948]
[1763594377685,1.49242857,3021.6,3019.6,0.4833]
[1763594377896,1.49242857,3021.6,3019.8,0.116]
[1763594378184,0.871004,3021.3,3020.1,0.1944]
[1763594378380,0.871004,3021.3,3019.6,0.4833]
[1763594378560,0.871004,3021.3,3019.3,0.117]
[1763594378561,0.405504,3021.2,3019.3,0.117]
[1763594378876,0.296,3021.0,3019.4,3.81143696]
[1763594379088,0.296,3021.0,3019.5,0.90699264]
[1763594379285,0.7914,3021.0,3019.4,3.81143696]
[1763594380181,0.7914,3021.0,3019.5,3.31179699]
[1763594380878,0.296,3021.0,3019.6,0.4996]
[1763594381081,0.296,3021.0,3020.4,0.1944]
[1763594381277,0.7914,3021.0,3020.1,0.1944]
[1763594381450,1.71619074,3021.0,3020.1,0.1944]
[1763594381778,1.88780981,3021.0,3020.1,0.1944]
[1763594382155,1.88780981,3021.0,3019.7,0.4996]
[1763594382557,1.88780981,3021.0,3019.5,3.31175766]
[1763594382880,1.88780981,3021.0,3019.5,3.31179771]
[1763594383281,1.88780981,3021.0,3019.4,0.4996]
[1763594383684,1.88780981,3021.0,3019.3,0.001]
[1763594384549,1.48230581,3021.0,3019.6,0.4996]
[1763594384775,1.88780981,3021.0,3019.6,0.4996]
[1763594385080,1.48230581,3021.0,3020.1,0.1944]
[1763594385267,1.48230581,3021.0,3019.5,0.4996]
[1763594385668,1.88780981,3021.0,3019.3,0.001]
[1763594386272,1.88780981,3021.0,3019.4,0.4996]
[1763594387299,1.88780981,3021.0,3020.2,0.1944]
[1763594388292,1.88780981,3021.0,3019.9,0.4996]
[1763594388496,1.88780981,3021.0,3020.1,0.1944]
[1763594390074,0.69090581,3021.0,3020.1,0.694]
[1763594390414,1.88569074,3021.0,3019.4,0.116]
[1763594390574,1.88569074,3021.0,3019.6,0.4996]
[1763594390968,1.88569074,3021.0,3019.3,0.001]
[1763594391195,1.090604,3020.9,3019.3,0.5006]
[1763594391397,0.405504,3020.7,3019.3,0.5006]
[1763594391574,0.900904,3020.7,3019.3,0.5006]
[1763594391770,0.900904,3020.7,3019.3,3.81252358]
[1763594392398,0.1897,3020.9,3019.4,0.4996]
[1763594392575,0.405504,3020.8,3019.4,0.4996]
[1763594392782,0.6851,3021.2,3019.4,0.4996]
[1763594392984,0.1897,3021.2,3019.5,3.31180659]
[1763594393202,0.4954,3021.1,3019.5,6.62361318]
[1763594393513,0.405504,3021.0,3019.6,0.4996]
[1763594393875,0.4954,3020.9,3019.6,0.4996]
[1763594394877,0.405504,3020.5,3019.6,0.4996]
[1763594395688,0.405504,3020.3,3019.3,0.001]
[1763594395890,0.6552,3019.4,3019.3,0.001]
[1763594396075,1.1506,3019.4,3019.3,0.001]
[1763594396490,1.556104,3019.4,3019.3,0.001]
[1763594397812,1.1506,3019.4,3019.3,0.001]
[1763594398012,1.556104,3019.4,3019.3,0.001]
[1763594400516,0.405504,3019.5,3019.3,0.001]
[1763594400834,0.86216377,3020.3,3019.3,0.001]
[1763594400983,0.1897,3020.3,3019.7,0.4895]
[1763594401184,0.49792518,3020.3,3019.7,0.4895]
[1763594401487,0.4655,3019.8,3019.3,0.001]
[1763594401687,0.405504,3020.1,3019.3,0.001]
[1763594401887,0.900904,3020.1,3019.3,0.001]
[1763594402083,0.30822518,3020.0,3019.3,0.001]
[1763594402285,0.80362518,3020.0,3019.3,0.001]
[1763594402485,0.405504,3019.8,3019.3,0.001]
[1763594403095,0.1897,3020.3,3019.4,0.4996]
[1763594403302,0.49808659,3020.3,3019.4,0.4996]
[1763594403614,0.405504,3020.2,3019.4,0.4996]
[1763594403814,0.71389059,3020.2,3019.3,0.001]
[1763594404151,1.20929059,3020.2,3019.3,0.001]
[1763594404425,0.405504,3020.0,3019.3,0.001]
[1763594404587,0.71389059,3020.0,3019.3,0.001]
[1763594405482,0.71389059,3020.0,3019.3,0.5006]
[1763594405684,1.67237286,3020.6,3019.9,0.4895]
[1763594405685,0.1897,3020.5,3019.9,0.4895]
[1763594405904,0.4988811,3020.5,3019.3,0.5006]
[1763594406120,0.1897,3020.5,3019.3,0.5006]
[1763594406417,0.70869068,3020.5,3019.3,0.5006]
[1763594406613,0.405504,3020.4,3019.3,0.5006]
[1763594406779,0.71239828,3020.6,3019.3,0.5006]
[1763594406979,2.09461469,3021.0,3020.3,0.4895]
[1763594407194,1.021688,3020.9,3020.4,0.1463]
[1763594407396,0.30928972,3020.8,3020.4,0.1463]
[1763594407615,0.405504,3021.0,3020.4,0.6459]
[1763594407802,0.30931826,3021.1,3020.4,0.6459]
[1763594408024,0.1917,3021.2,3020.4,0.6459]
[1763594408339,0.1917,3021.2,3020.0,0.1463]
[1763594408340,0.405504,3020.8,3020.0,0.1463]
[1763594408699,0.405504,3020.8,3020.0,0.6427]
[1763594408946,0.71484923,3020.8,3020.0,0.6427]
[1763594409232,0.405504,3020.8,3020.0,0.6427]
[1763594410033,0.405504,3020.8,3020.7,0.4856]
[1763594410403,0.405504,3020.8,3020.1,0.4964]
[1763594410833,0.897704,3020.8,3020.0,0.1463]
[1763594411908,0.405504,3020.8,3020.0,0.6427]
[1763594412410,0.405504,3020.8,3020.7,0.4856]
[1763594412615,0.405504,3020.8,3020.1,0.4964]
[1763594413358,0.405504,3020.8,3019.3,0.90799264]
[1763594413359,0.405504,3020.6,3019.3,0.4974]
[1763594413646,0.644004,3020.1,3019.3,0.4974]
[1763594414009,0.644004,3020.1,3020.0,0.001]
[1763594415637,1.136204,3020.1,3020.0,0.001]
[1763594417123,0.644004,3020.1,3020.0,0.001]
[1763594417526,1.136204,3020.1,3020.0,0.001]
[1763594417726,4.82174559,3020.1,3019.6,0.001]
[1763594417944,1.082204,3019.7,3019.6,0.001]
[1763594418152,1.39158963,3019.7,3019.6,0.001]
[1763594418455,3.50361897,3019.7,3019.6,0.001]
[1763594418755,3.85398087,3019.7,3019.6,0.001]
[1763594419260,1.97224417,3019.7,3019.6,0.001]
[1763594419475,2.11298227,3019.7,3019.6,0.001]
[1763594420326,1.31249664,3019.7,3019.6,0.001]
[1763594421453,1.83199784,3019.7,3019.6,0.001]
[1763594421653,0.5195012,3019.7,3019.6,0.4866]
[1763594421969,0.30933203,3020.2,3019.6,0.4866]
[1763594422176,0.4922,3021.3,3020.3,0.6319]
[1763594422384,1.51383747,3021.3,3020.6,0.4856]
[1763594422526,0.57605775,3021.1,3020.6,0.4856]
[1763594422727,0.30920321,3021.0,3020.6,0.4856]
[1763594423203,0.47975696,3021.1,3020.6,0.4856]
[1763594423409,0.17055375,3021.1,3020.6,0.4856]
[1763594424387,0.405504,3021.0,3020.6,0.4856]
[1763594424696,0.71470721,3021.0,3020.6,0.4856]
[1763594424995,0.89364673,3021.0,3020.6,0.4856]
[1763594425196,0.58444352,3021.0,3020.6,0.4856]
[1763594425365,0.92487252,3021.0,3020.6,0.4856]
[1763594425766,0.92487252,3021.0,3020.3,0.6427]
[1763594425767,0.51936852,3021.0,3020.9,0.4856]
[1763594426206,0.002,3021.2,3020.9,0.4856]
[1763594426408,0.002,3021.2,3021.1,0.5933]
[1763594426807,0.002,3021.2,3021.1,1.0917]
[1763594428300,0.002,3021.2,3021.1,0.5933]
[1763594428541,0.002,3021.2,3021.1,1.0917]
[1763594429504,0.002,3021.2,3021.1,0.5933]
[1763594429699,0.002,3021.2,3020.8,0.4984]
[1763594430131,0.002,3021.2,3020.5,0.4984]
[1763594430533,0.002,3021.2,3020.3,0.2623]
[1763594430710,0.002,3021.2,3020.4,0.4984]
[1763594431101,0.002,3021.2,3020.3,0.2623]
[1763594431102,0.4755,3021.2,3020.3,0.1463]
[1763594431304,0.002,3021.2,3020.3,0.1463]
[1763594431535,0.002,3021.2,3020.4,0.4984]
[1763594431936,0.002,3021.2,3020.3,0.1463]
[1763594431937,0.405504,3021.1,3020.3,0.1463]
[1763594432342,0.6931,3020.4,3019.7,0.116]
[1763594432560,0.6931,3020.4,3019.6,0.001]
[1763594433157,0.6931,3020.4,3020.0,0.001]
[1763594433531,0.1998,3020.8,3020.0,0.001]
[1763594433731,0.405504,3020.7,3020.0,0.001]
[1763594434150,0.879004,3020.7,3020.0,0.001]
[1763594434309,0.405504,3020.7,3020.0,0.001]
[1763594434636,0.405504,3020.5,3020.0,0.001]
[1763594435004,0.405504,3020.4,3020.0,0.001]
[1763594435611,0.405504,3020.7,3020.1,0.1463]
[1763594435818,0.405504,3020.7,3020.0,0.001]
[1763594436137,0.879004,3020.7,3020.0,0.001]
[1763594436543,0.405504,3020.7,3020.0,0.001]
[1763594436750,0.405504,3020.5,3020.0,0.001]
[1763594437122,0.405504,3020.4,3020.0,0.001]
[1763594437726,0.405504,3020.7,3020.0,0.001]
[1763594437918,0.405504,3020.5,3020.0,0.001]
[1763594438407,0.4851,3020.1,3020.0,0.001]
[1763594438608,0.405504,3020.4,3020.0,0.001]
[1763594438813,0.405504,3020.7,3020.1,0.1463]
[1763594439340,0.405504,3020.7,3020.0,0.4571]
[1763594439341,0.897104,3020.7,3020.0,0.001]
[1763594440003,0.405504,3020.5,3020.0,0.001]
[1763594440229,0.4851,3020.1,3020.0,0.001]
[1763594440639,0.405504,3020.5,3020.0,0.001]
[1763594440844,0.4851,3020.1,3020.0,0.001]
[1763594441410,0.890604,3020.1,3020.0,0.001]
[1763594441608,1.382204,3020.1,3020.0,0.001]
[1763594442862,2.30471502,3020.1,3020.0,0.001]
[1763594443069,3.1334057,3020.1,3020.0,0.001]
[1763594443253,3.13338804,3020.1,3020.0,0.001]
[1763594443570,4.04038068,3020.1,3020.0,0.001]
[1763594443765,3.11786966,3020.1,3020.0,0.001]
[1763594444167,2.80869454,3020.1,3020.0,0.001]
[1763594445037,3.82991067,3020.1,3020.0,0.001]
[1763594447376,3.117787,3020.1,3020.0,0.001]
[1763594447565,3.4295657,3020.1,3020.0,0.001]
[1763594447970,11.07709368,3020.1,3020.0,0.001]
[1763594449235,10.76800122,3020.1,3020.0,0.001]
[1763594449439,11.07688092,3020.1,3020.0,0.001]
[1763594450043,4.14096737,3020.1,3020.0,0.001]
[1763594450766,11.07688092,3020.1,3020.0,0.001]
[1763594453011,10.55738302,3020.1,3020.0,0.001]
[1763594454399,3.62146947,3020.1,3020.0,0.001]
[1763594454599,2.90985504,3020.1,3020.0,0.001]
[1763594454757,1.93315504,3020.1,3020.0,0.001]
[1763594454961,0.002,3020.5,3020.0,0.4571]
[1763594455183,0.405504,3020.4,3020.0,0.001]
[1763594455381,0.4851,3020.1,3020.0,0.001]
[1763594455584,0.4916,3020.4,3020.0,0.001]
[1763594456097,0.407504,3020.5,3020.0,0.001]
[1763594456296,0.405504,3020.3,3020.0,0.001]
[1763594456810,0.897104,3020.3,3020.0,0.001]
[1763594457011,0.890604,3020.1,3020.0,0.001]
[1763594457228,1.0693748,3020.1,3020.0,0.001]
[1763594457431,1.5609748,3020.1,3020.0,0.001]
[1763594457577,8.49688835,3020.1,3020.0,0.001]
[1763594457907,10.42424465,3020.1,3020.0,0.001]
[1763594460623,11.31521048,3020.1,3020.0,0.001]
[1763594461112,10.42424465,3020.1,3020.0,0.001]
[1763594462124,11.60121751,3020.1,3020.0,0.001]
[1763594462426,11.60121751,3020.1,3019.6,0.001]
[1763594462427,1.31249664,3020.0,3019.6,0.001]
[1763594462627,0.824904,3019.7,3019.6,0.001]
[1763594462834,9.46824921,3019.7,3019.6,0.001]
[1763594462984,10.17977385,3019.7,3019.6,0.001]
[1763594465832,10.18200013,3019.7,3019.6,0.001]
[1763594466845,1.02258994,3019.7,3019.6,0.4571]
[1763594467126,0.1787708,3020.1,3019.6,0.9243]
[1763594467420,0.6703708,3020.1,3019.6,0.4571]
[1763594467619,0.30986055,3020.0,3019.6,0.4571]
[1763594467807,0.49858295,3020.0,3019.6,0.4571]
[1763594468159,0.868404,3019.7,3019.6,0.001]
[1763594468364,1.17826455,3019.7,3019.6,0.001]
[1763594468530,2.57585719,3019.7,3019.6,0.001]
[1763594468725,4.73765409,3019.7,3019.6,0.001]
[1763594469072,5.03471393,3019.7,3019.6,0.001]
[1763594469224,5.61610319,3019.7,3019.6,0.001]
[1763594469642,5.61610319,3019.7,3019.3,0.001]
[1763594469643,1.136604,3019.6,3019.3,0.001]
[1763594469844,9.89983278,3019.4,3019.3,0.001]
[1763594470022,4.57747256,3019.4,3019.3,0.001]
[1763594470234,2.39368844,3019.4,3019.3,0.001]
[1763594470431,1.93078844,3019.4,3019.3,0.001]
[1763594470861,2.33629244,3019.4,3019.3,0.001]
[1763594471266,1.21685319,3019.4,3019.3,0.4663]
[1763594471566,2.33694531,3019.4,3019.3,0.001]
[1763594471748,2.65995413,3019.4,3019.3,0.001]
[1763594472149,1.02444867,3019.4,3019.3,0.9355]
[1763594472458,0.1887224,3020.0,3019.3,0.9355]
[1763594472627,0.71565502,3019.9,3019.6,0.4653]
[1763594472828,0.405504,3019.7,3019.4,0.4692]
[1763594473028,0.31015102,3019.7,3019.6,0.4653]
[1763594473242,0.405504,3019.7,3019.6,0.4653]
[1763594473450,0.31015102,3019.7,3019.3,0.001]
[1763594473784,0.405504,3019.7,3019.3,0.001]
[1763594473987,0.405504,3019.7,3019.3,0.4702]
[1763594473988,0.92507005,3019.7,3019.3,0.4702]
[1763594474168,0.405504,3019.5,3019.3,0.4702]
[1763594474562,0.405504,3019.5,3019.4,0.4653]
[1763594474862,0.51956605,3019.7,3019.4,0.4653]
[1763594475174,0.51956605,3019.7,3019.6,0.4653]
[1763594475551,0.92507005,3019.7,3019.6,0.4653]
[1763594475781,1.23523704,3019.7,3019.6,0.9345]
[1763594476182,0.002,3020.1,3019.6,0.9345]
[1763594476364,0.002,3020.1,3020.0,0.4653]
[1763594476764,0.002,3020.1,3020.0,0.9345]
[1763594479494,0.002,3020.1,3020.0,0.4653]
[1763594479855,0.002,3020.1,3020.0,0.9345]
[1763594481396,0.002,3020.1,3020.0,4.24575827]
[1763594481594,0.002,3020.5,3020.0,7.55701654]
[1763594481762,0.002,3020.5,3020.4,0.6277]
[1763594482262,0.002,3020.5,3020.4,1.0969]
[1763594486268,0.002,3020.5,3020.4,0.6277]
[1763594486472,0.002,3020.5,3020.1,0.4854]
[1763594486671,0.002,3020.5,3019.9,0.1624]
[1763594487000,0.002,3020.5,3019.9,0.6478]
[1763594487200,0.002,3020.5,3020.4,0.4777]
[1763594487569,0.405504,3020.4,3020.0,0.001]
[1763594487987,0.002,3020.5,3020.0,0.4864]
[1763594488672,0.002,3020.5,3020.4,0.4777]
[1763594489210,0.4732,3020.5,3020.0,0.001]
[1763594489404,0.405504,3020.4,3020.0,0.001]
[1763594489609,0.002,3020.5,3020.4,0.4777]
[1763594489966,0.002,3020.5,3020.4,0.9631]
[1763594490173,0.002,3020.5,3020.4,0.4777]
[1763594490808,0.002,3020.5,3020.4,0.9631]
[1763594492430,0.002,3020.5,3020.4,4.27391975]
[1763594493123,0.002,3020.9,3020.4,10.92866744]
[1763594493278,0.002,3020.9,3020.8,0.4777]
[1763594493478,0.002,3021.2,3020.8,0.5927]
[1763594493679,0.002,3021.2,3021.1,3.88605262]
[1763594494214,0.002,3021.2,3021.1,4.37145262]
[1763594494515,0.002,3021.2,3021.1,1.0614]
[1763594494927,0.002,3021.2,3021.1,4.37145262]
[1763594496631,0.002,3021.2,3021.1,1.0614]
[1763594497938,0.002,3021.9,3021.5,0.46]
[1763594498094,0.002,3021.9,3021.8,0.46]
[1763594498305,0.002,3021.9,3021.8,1.5462321]
[1763594498600,0.002,3021.9,3021.8,0.9262]
[1763594498797,0.1949,3023.5,3021.8,0.9262]
[1763594498998,0.89798702,3024.1,3022.3,0.6124]
[1763594498999,0.1949,3023.8,3022.3,0.6124]
[1763594499203,0.1949,3023.8,3022.3,1.0786]
[1763594499204,0.6747,3023.8,3022.3,1.0786]
[1763594499406,0.4798,3023.6,3022.3,1.1936]
[1763594499823,0.4798,3023.6,3022.3,5.40933101]
[1763594500200,0.1949,3023.8,3022.3,2.10059264]
[1763594500415,0.405504,3023.3,3022.3,1.98559264]
[1763594500626,0.405504,3023.3,3022.3,2.10059264]
[1763594501237,0.407504,3022.8,3022.3,0.6124]
[1763594501443,0.407504,3022.8,3022.3,0.7274]
[1763594501617,0.405504,3022.3,3021.9,0.115]
[1763594502141,0.002,3022.4,3021.9,0.115]
[1763594502316,0.4798,3022.3,3021.9,0.115]
[1763594502634,0.002,3022.4,3021.9,0.115]
[1763594502840,0.002,3022.8,3022.3,0.6124]
[1763594503040,0.002,3022.8,3022.7,0.46]
[1763594503240,0.002,3022.8,3022.7,0.9262]
[1763594504039,0.002,3022.8,3022.7,4.23450052]
[1763594504210,0.002,3022.8,3022.7,4.34950052]
[1763594508960,0.002,3022.8,3022.7,0.46]
[1763594509158,0.002,3022.8,3022.3,3.46111525]
[1763594509481,0.002,3022.8,3021.7,3.46174859]
[1763594509482,0.4915,3022.4,3021.7,0.1524]
[1763594509653,0.4798,3022.7,3021.7,0.1524]
[1763594509654,0.2441,3022.2,3021.7,0.115]
[1763594510230,0.407504,3022.8,3021.7,0.5812]
[1763594510555,0.405504,3022.6,3021.8,0.115]
[1763594510757,0.405504,3022.6,3021.5,0.1524]
[1763594510960,0.1949,3021.6,3021.1,0.0983]
[1763594511137,0.405504,3022.4,3021.2,0.115]
[1763594511338,0.405504,3021.8,3021.2,0.115]
[1763594511646,0.405504,3021.8,3021.3,0.115]
[1763594511859,0.4915,3021.4,3021.0,0.001]
[1763594512027,0.405504,3021.8,3021.1,0.115]
[1763594512223,0.405504,3021.8,3021.2,0.115]
[1763594513059,0.885304,3021.8,3021.2,0.115]
[1763594513674,0.885304,3021.8,3021.0,0.001]